bitfinex/quotes_ETHUSD_20240714
["timestamp","ask_amount","ask_price","bid_price","bid_amount"]
[1720993711756,0.0011,3247.9,3247.7,10.64564951]
[1720993712056,0.0011,3247.9,3247.7,11.94564951]
[1720993712392,0.0011,3247.9,3247.7,13.64564951]
[1720993713191,0.0011,3247.9,3247.7,11.94564951]
[1720993713561,0.0011,3247.9,3247.7,13.64564951]
[1720993713977,0.0011,3247.9,3247.8,2.4632]
[1720993714176,0.0011,3247.9,3247.8,8.4764]
[1720993714356,0.00338835,3248.0,3247.9,4.72843]
[1720993714563,0.00338835,3248.0,3247.9,9.97843]
[1720993714813,0.00338835,3248.0,3247.9,12.44156]
[1720993715456,0.005,3249.2,3249.1,1.7]
[1720993715697,0.005,3249.2,3249.1,0.55]
[1720993715970,0.005,3249.2,3248.9,3.55]
[1720993716303,0.005,3249.2,3249.0,3.16225725]
[1720993716487,0.005,3249.2,3249.1,0.55]
[1720993716873,0.005,3249.2,3249.1,2.25]
[1720993717072,0.005,3249.2,3249.1,0.55]
[1720993717307,0.005,3249.2,3249.0,0.55]
[1720993718412,0.005,3249.2,3249.0,3.01228]
[1720993718570,0.005,3249.2,3249.1,1.7]
[1720993718770,0.005,3249.2,3249.1,5.25]
[1720993718975,0.005,3249.2,3249.1,7.6658]
[1720993719207,0.005,3249.2,3249.1,5.9658]
[1720993719408,0.005,3249.2,3248.0,4.1158]
[1720993719739,0.02729636,3249.1,3248.0,4.1158]
[1720993720271,0.02729636,3249.1,3248.1,2.46297]
[1720993720478,0.005,3249.2,3248.1,2.46297]
[1720993720812,0.005,3249.2,3248.2,4.16287]
[1720993721221,4.4391225,3249.9,3248.2,1.7]
[1720993721537,1.05925975,3249.8,3248.3,0.55]
[1720993721904,4.4391225,3249.9,3248.3,2.25]
[1720993722103,4.4391225,3249.9,3248.3,5.25]
[1720993722324,2.4739,3250.4,3248.6,2.46257]
[1720993722525,2.4739,3250.4,3248.7,2.8]
[1720993723046,2.4739,3250.4,3249.2,1.7]
[1720993723204,2.4739,3250.4,3249.3,0.55]
[1720993725009,2.4739,3250.4,3249.5,1.7]
[1720993725191,5.01160213,3250.0,3249.6,0.55]
[1720993725394,5.01160213,3250.0,3249.6,2.25]
[1720993726602,4.01160213,3250.0,3249.6,2.25]
[1720993729221,4.01160213,3250.0,3249.6,0.55]
[1720993729415,4.01160213,3250.0,3249.3,0.55]
[1720993730309,3.01160213,3250.0,3249.3,0.55]
[1720993731011,2.2906,3249.9,3249.3,0.55]
[1720993731712,3.01160213,3250.0,3249.3,0.55]
[1720993731905,3.01160213,3250.0,3249.3,3.0057]
[1720993732229,3.01160213,3250.0,3249.3,3.01205]
[1720993732614,3.01160213,3250.0,3249.3,0.55]
[1720993733148,3.01160213,3250.0,3249.3,3.01204]
[1720993733328,3.01160213,3250.0,3249.4,2.46196]
[1720993733532,3.01160213,3250.0,3249.5,0.55]
[1720993734194,3.01160213,3250.0,3249.5,3.01191]
[1720993734501,3.01160213,3250.0,3249.6,1.7]
[1720993734740,3.01160213,3250.0,3249.7,0.55]
[1720993735331,3.01160213,3250.0,3249.6,0.55]
[1720993736699,3.01160213,3250.0,3249.7,2.4129]
[1720993737008,3.01160213,3250.0,3249.8,0.55]
[1720993737897,3.01160213,3250.0,3249.7,0.55]
[1720993738431,2.36929622,3250.0,3249.4,3.01198]
[1720993739709,2.36929622,3250.0,3249.5,2.4129]
[1720993740040,2.36929622,3250.0,3249.6,0.55]
[1720993740810,2.36929622,3250.0,3249.5,2.46187]
[1720993741042,2.36929622,3250.0,3249.6,0.55]
[1720993741408,2.36929622,3250.0,3249.4,0.55]
[1720993742127,2.36929622,3250.0,3249.5,1.7]
[1720993742312,2.36929622,3250.0,3249.6,0.55]
[1720993745322,1.22738682,3250.0,3249.6,0.55]
[1720993745841,1.22738682,3250.0,3249.6,1.7]
[1720993746048,1.22738682,3250.0,3249.7,0.55]
[1720993747335,1.22738682,3250.0,3249.3,3.0]
[1720993747336,1.22738682,3250.0,3249.4,0.55]
[1720993749167,3.56908682,3250.0,3249.3,3.0]
[1720993749327,3.92748718,3250.0,3249.3,3.0]
[1720993749525,3.92748718,3250.0,3248.9,1.7]
[1720993749826,3.92748718,3250.0,3248.9,3.0]
[1720993750026,3.92748718,3250.0,3248.7,4.92471]
[1720993750432,3.92748718,3250.0,3248.8,0.55]
[1720993750653,0.39274872,3249.9,3248.8,0.55]
[1720993751326,0.39274872,3249.9,3248.8,2.25]
[1720993751528,3.56908682,3250.0,3248.8,0.55]
[1720993751831,3.56908682,3250.0,3248.8,2.25]
[1720993752137,3.56908682,3250.0,3248.8,0.55]
[1720993752348,3.56908682,3250.0,3248.8,2.25]
[1720993752660,2.3336,3249.9,3248.8,0.55]
[1720993752832,0.35609868,3249.8,3248.7,0.55]
[1720993753030,2.3336,3249.9,3248.7,0.55]
[1720993753924,5.3336,3249.9,3248.7,0.55]
[1720993754329,2.3336,3249.8,3248.7,0.55]
[1720993756041,2.3336,3249.8,3248.6,0.32125902]
[1720993756349,2.3336,3249.6,3248.6,0.32125902]
[1720993757564,2.3336,3249.6,3248.7,0.55]
[1720993764548,2.65584545,3249.6,3248.7,0.55]
[1720993764747,0.32224545,3249.6,3248.9,1.7]
[1720993764947,0.32224545,3249.6,3249.0,0.55]
[1720993765180,2.2671,3249.5,3249.0,0.55]
[1720993765982,1.22738682,3250.0,3249.0,0.55]
[1720993766277,2.252,3249.9,3249.0,0.55]
[1720993768552,2.252,3249.9,3249.0,2.8458]
[1720993768744,1.22738682,3250.0,3249.0,2.8458]
[1720993768942,1.22738682,3250.0,3249.0,0.55]
[1720993769980,1.22738682,3250.0,3249.5,1.7]
[1720993770179,1.22738682,3250.0,3249.6,0.55]
[1720993774364,1.22738682,3250.0,3249.8,1.7]
[1720993774571,1.22738682,3250.0,3249.9,0.55]
[1720993775214,1.22738682,3250.0,3249.9,2.9517]
[1720993775361,1.22738682,3250.0,3249.9,5.9517]
[1720993776206,1.22738682,3250.0,3249.9,3.55]
[1720993776400,1.22738682,3250.0,3249.9,0.55]
[1720993777759,1.22738682,3250.0,3249.9,2.8274]
[1720993777959,1.22738682,3250.0,3249.9,5.8274]
[1720993778501,0.58519121,3250.0,3249.9,3.55]
[1720993778813,0.58519121,3250.0,3249.9,0.55]
[1720993781305,0.58519121,3250.0,3249.9,1.7]
[1720993781477,0.58519121,3250.0,3249.9,2.25]
[1720993782427,0.58519121,3250.0,3249.9,1.642]
[1720993783006,0.58519121,3250.0,3249.9,3.342]
[1720993783234,0.58519121,3250.0,3249.9,6.342]
[1720993784703,0.58519121,3250.0,3249.9,8.8364]
[1720993785204,0.58519121,3250.0,3249.9,5.25]
[1720993785373,0.58519121,3250.0,3249.9,3.342]
[1720993785582,0.58519121,3250.0,3249.9,4.642]
[1720993785783,0.58519121,3250.0,3249.9,3.55]
[1720993786004,0.58519121,3250.0,3249.9,4.642]
[1720993786162,0.61225906,3250.0,3249.9,4.642]
[1720993786479,0.58519121,3250.0,3249.9,4.642]
[1720993786915,0.58519121,3250.0,3249.9,1.642]
[1720993787078,0.58519121,3250.0,3249.9,4.642]
[1720993790209,0.58519121,3250.0,3249.9,9.40571]
[1720993790429,1e-08,3250.0,3249.9,9.40571]
[1720993790833,1e-08,3250.0,3249.9,11.86732]
[1720993791612,2.24931683,3251.3,3250.4,1.7]
[1720993791785,2.24931683,3251.3,3250.5,0.55]
[1720993792022,0.02715354,3251.2,3250.5,0.55]
[1720993792227,1.092,3251.6,3250.6,0.06151109]
[1720993792530,1.092,3251.6,3250.7,0.55]
[1720993792739,1.092,3251.7,3250.7,0.55]
[1720993793536,0.02715757,3251.6,3249.9,3.0]
[1720993793700,0.02715757,3251.6,3250.4,1.092]
[1720993793903,1.092,3251.7,3250.6,1.092]
[1720993794098,0.02715922,3251.6,3250.6,1.092]
[1720993794303,1.092,3251.7,3250.6,1.092]
[1720993794646,2.4248,3251.6,3250.6,1.092]
[1720993794807,0.35168,3251.5,3250.7,0.55]
[1720993794999,0.3788393,3251.5,3250.7,0.55]
[1720993795196,0.0271593,3251.5,3250.7,0.55]
[1720993797738,0.0271593,3251.5,3250.8,1.092]
[1720993798042,0.0271593,3251.5,3250.9,0.55]
[1720993798212,2.4248,3251.6,3250.9,0.55]
[1720993798415,0.02733051,3251.4,3250.9,0.55]
[1720993798750,0.02732887,3251.3,3251.0,1.092]
[1720993798899,0.02732887,3251.3,3251.1,0.55]
[1720993799103,2.4669,3251.8,3251.1,0.55]
[1720993799323,0.02734013,3251.7,3251.1,0.55]
[1720993800402,2.4669,3251.6,3249.8,0.3094]
[1720993800709,0.02741127,3251.5,3251.0,1.7]
[1720993800921,0.02741127,3251.5,3251.3,1.092]
[1720993801135,2.4669,3252.0,3251.1,1.092]
[1720993801336,2.71359,3252.0,3251.1,1.092]
[1720993802052,2.71359,3252.0,3251.2,0.55]
[1720993802350,2.4669,3252.0,3251.2,0.55]
[1720993803562,2.4669,3252.0,3251.3,1.092]
[1720993803845,2.4669,3252.0,3251.4,0.55]
[1720993804964,2.2521,3252.9,3252.1,1.7]
[1720993805245,2.2521,3252.6,3252.2,0.55]
[1720993805448,0.005,3252.7,3252.4,1.092]
[1720993805659,0.005,3252.7,3252.6,1.092]
[1720993805816,0.005,3252.7,3252.5,1.7]
[1720993806003,0.005,3252.7,3252.6,0.55]
[1720993806657,0.005,3252.7,3252.3,0.55]
[1720993806956,0.005,3252.7,3252.4,2.4597]
[1720993807164,0.005,3252.7,3252.5,3.00962]
[1720993807667,0.005,3252.7,3252.6,5.45957]
[1720993807829,0.005,3252.7,3252.6,6.00957]
[1720993808449,0.005,3252.7,3252.6,3.55]
[1720993808653,0.005,3252.7,3252.6,0.55]
[1720993808835,0.005,3252.7,3252.6,3.00957]
[1720993809038,0.005,3252.7,3252.6,6.00957]
[1720993810165,0.005,3252.7,3252.6,3.0]
[1720993810373,0.1220225,3253.0,3252.1,5.45988]
[1720993810724,0.1220225,3253.0,3252.4,1.7]
[1720993810925,0.1220225,3253.0,3252.5,1.7]
[1720993811170,0.1220225,3253.0,3252.5,4.7]
[1720993811378,0.1220225,3253.0,3252.5,1.7]
[1720993812531,0.1220225,3253.0,3252.6,0.55]
[1720993813390,0.1220225,3253.0,3252.9,1.7]
[1720993813526,0.1220225,3253.0,3252.9,2.25]
[1720993815080,0.1220225,3253.0,3252.9,1.7]
[1720993816077,0.1220225,3253.0,3252.9,1.76146692]
[1720993816350,0.1220225,3253.0,3252.9,1.7]
[1720993816896,0.1220225,3253.0,3252.9,2.25]
[1720993817396,0.1220225,3253.0,3252.9,1.855381]
[1720993817595,0.1220225,3253.0,3252.9,4.855381]
[1720993817950,0.1220225,3253.0,3252.9,7.314721]
[1720993818352,0.1220225,3253.0,3252.9,1.855381]
[1720993818567,1.94560503,3253.4,3252.9,1.7]
[1720993818789,0.15538083,3253.6,3253.0,3.05]
[1720993819665,0.15538083,3253.6,3253.1,0.55]
[1720993821269,0.15538083,3253.6,3253.1,0.61146539]
[1720993821473,0.25,3253.9,3253.1,0.55]
[1720993822082,0.25,3253.9,3253.1,0.61146235]
[1720993822905,0.25,3253.9,3253.1,0.55]
[1720993823118,0.25,3253.9,3253.1,0.61146236]
[1720993823613,0.25,3253.9,3253.1,0.55]
[1720993823970,0.25,3253.9,3253.3,1.7]
[1720993824170,0.25,3253.9,3253.4,0.55]
[1720993824685,2.3964,3253.8,3253.4,0.55]
[1720993824868,2.66104,3253.8,3253.4,0.55]
[1720993825207,0.25,3253.9,3253.4,0.55]
[1720993825707,0.25,3253.9,3253.4,0.6114589]
[1720993825896,0.25,3253.9,3253.4,0.55]
[1720993826267,0.25,3253.9,3253.3,1.7]
[1720993826468,0.25,3253.9,3253.4,0.06146532]
[1720993826907,0.25,3253.9,3253.3,1.7]
[1720993827136,0.35236042,3254.9,3254.2,2.4339]
[1720993827266,0.26618059,3255.2,3254.1,1.7]
[1720993827267,0.26618059,3255.2,3254.9,2.4339]
[1720993827469,0.26618059,3255.2,3255.0,0.55]
[1720993827781,0.26618059,3255.2,3255.0,1.43485924]
[1720993828121,0.26618059,3255.2,3255.0,6.00775]
[1720993828267,0.26618059,3255.2,3255.0,3.55]
[1720993829320,0.26618059,3255.2,3255.1,1.7]
[1720993829477,0.26618059,3255.2,3255.1,2.25]
[1720993829678,0.26618059,3255.2,3255.1,4.70768]
[1720993830216,0.26618059,3255.2,3255.1,4.86128039]
[1720993830373,1.0,3256.0,3255.1,4.86128039]
[1720993830580,1.0,3256.0,3255.2,0.55]
[1720993831308,1.0,3256.0,3255.2,0.70360039]
[1720993832292,1.0,3256.0,3255.2,0.15360039]
[1720993833524,1.0,3256.0,3255.9,0.15360039]
[1720993833721,1.06561707,3256.0,3255.9,0.15360039]
[1720993833898,1.06561707,3256.0,3255.9,0.70360039]
[1720993835030,1.06561707,3256.0,3255.9,0.15360039]
[1720993836527,3.38871707,3256.0,3255.9,0.15360039]
[1720993836820,3.98938878,3256.0,3253.9,1.7]
[1720993837030,3.0,3255.9,3254.0,1.19]
[1720993837323,0.06335261,3255.8,3254.0,1.19]
[1720993837623,0.30633526,3255.7,3254.0,1.19]
[1720993837819,0.36968751,3255.7,3254.0,1.19]
[1720993838697,0.06335225,3255.7,3254.0,1.19]
[1720993839596,2.3234,3255.6,3254.1,0.55]
[1720993839999,2.3234,3255.6,3254.0,1.19]
[1720993840000,0.06322734,3255.5,3254.0,1.19]
[1720993840423,3.06322734,3255.5,3254.0,1.19]
[1720993840594,0.78439273,3255.4,3254.0,1.19]
[1720993840801,0.84761928,3255.4,3254.0,1.19]
[1720993841545,0.84761928,3255.4,3254.1,0.55]
[1720993841847,2.4586,3255.3,3254.1,0.55]
[1720993842218,0.06317793,3255.2,3254.1,0.55]
[1720993842412,0.25217779,3255.1,3254.1,0.55]
[1720993842949,0.06314801,3255.0,3253.9,0.55]
[1720993844414,2.2704,3254.9,3253.9,0.55]
[1720993844632,2.33326547,3254.9,3253.9,0.55]
[1720993846513,2.33326547,3254.9,3253.8,3.04]
[1720993846715,0.23332655,3254.8,3253.9,0.06146487]
[1720993846941,0.06286547,3254.9,3254.0,0.55]
[1720993847104,0.06282041,3254.8,3254.0,0.55]
[1720993847312,0.06282041,3254.8,3253.9,0.55]
[1720993847620,0.06277419,3254.7,3253.9,0.55]
[1720993848023,2.45738,3255.5,3253.9,0.55]
[1720993848220,2.4028,3255.3,3253.9,0.61145508]
[1720993848618,0.06278075,3255.2,3253.9,0.55]
[1720993848946,0.06278075,3255.2,3253.9,0.61145437]
[1720993849118,0.06278075,3255.2,3253.9,0.55]
[1720993850609,2.4028,3255.1,3253.8,3.04]
[1720993850827,0.24655808,3255.0,3253.8,3.04]
[1720993851233,0.06276232,3254.9,3253.8,3.04]
[1720993852138,0.06276232,3254.9,3253.9,0.55]
[1720993859215,2.4527,3254.8,3253.9,0.55]
[1720993859734,0.0627333,3254.7,3253.9,0.55]
[1720993859942,0.31427663,3254.7,3253.9,0.55]
[1720993861351,0.0627333,3254.7,3253.9,0.55]
[1720993862520,0.0627333,3254.7,3254.0,0.55]
[1720993862751,0.0627333,3254.7,3253.6,0.55]
[1720993867020,2.4527,3254.8,3253.6,0.55]
[1720993867220,2.4527,3254.8,3253.4,1.7]
[1720993867459,2.4527,3254.8,3253.5,0.55]
[1720993867656,0.06274319,3254.7,3253.5,0.55]
[1720993868020,2.69797,3254.8,3253.5,0.55]
[1720993868217,0.06277459,3254.6,3253.5,0.55]
[1720993868457,2.69797,3254.8,3253.3,0.55]
[1720993868763,0.06276489,3254.5,3253.4,1.7]
[1720993869063,2.69797,3254.8,3253.5,0.55]
[1720993869224,0.06276363,3254.4,3253.5,0.55]
[1720993869558,0.269797,3254.7,3253.5,0.55]
[1720993869925,0.06278858,3254.6,3253.5,1.7]
[1720993870163,2.4527,3254.8,3253.6,0.55]
[1720993870659,0.06278981,3254.7,3253.6,0.55]
[1720993870857,2.4527,3254.8,3253.3,0.55]
[1720993871074,0.06278858,3254.6,3253.3,0.55]
[1720993871269,2.4527,3254.8,3253.5,1.7]
[1720993871569,0.06278736,3254.5,3253.6,0.55]
[1720993871928,2.4527,3254.8,3253.6,0.55]
[1720993872222,0.06278981,3254.7,3253.6,0.55]
[1720993872429,2.4527,3254.8,3253.6,0.55]
[1720993872661,0.06278858,3254.6,3253.6,0.55]
[1720993872849,2.4527,3254.8,3253.6,0.55]
[1720993873471,0.06280576,3254.7,3253.6,0.55]
[1720993873627,2.4527,3254.8,3253.6,0.55]
[1720993873826,0.06280325,3254.6,3253.6,0.55]
[1720993874026,2.4527,3254.8,3253.6,0.55]
[1720993875446,2.4527,3254.8,3253.9,1.7]
[1720993875666,2.4527,3254.8,3254.0,0.55]
[1720993876463,0.545738,3255.4,3254.0,0.55]
[1720993876666,0.06280244,3254.7,3254.0,0.55]
[1720993876994,2.4307,3255.5,3254.0,0.55]
[1720993877350,0.06283149,3255.4,3254.0,0.55]
[1720993877876,0.06283149,3255.4,3254.3,1.7]
[1720993878180,0.06283149,3255.4,3254.4,0.55]
[1720993878373,0.24935315,3255.3,3254.0,0.55]
[1720993878572,0.06283149,3255.4,3254.0,0.55]
[1720993878879,0.06083355,3255.3,3254.3,1.7]
[1720993879083,0.06083355,3255.3,3254.4,0.55]
[1720993879285,2.4307,3255.5,3254.4,0.55]
[1720993880175,0.06084053,3255.4,3254.4,0.55]
[1720993880371,0.24915405,3255.3,3254.4,0.55]
[1720993880678,0.06083768,3255.2,3254.4,0.55]
[1720993880986,2.4307,3255.5,3254.4,2.9984]
[1720993881355,2.4307,3255.5,3254.4,0.55]
[1720993881356,0.0608623,3255.4,3254.4,0.55]
[1720993881679,2.4307,3255.5,3254.4,0.55]
[1720993881889,0.06088934,3255.3,3254.4,0.55]
[1720993882184,0.24307,3255.4,3254.4,0.55]
[1720993882888,1.1495494,3255.3,3254.4,0.55]
[1720993883097,1.1495494,3255.3,3254.1,0.55]
[1720993883455,0.0605494,3255.3,3254.2,1.089]
[1720993883656,0.0605494,3255.3,3254.3,0.55]
[1720993883861,0.44288134,3255.3,3254.3,0.55]
[1720993884080,1.53188134,3255.3,3254.3,0.55]
[1720993884598,1.53188134,3255.3,3254.1,0.55]
[1720993887299,2.3611,3255.2,3254.1,0.55]
[1720993887470,2.42165252,3255.2,3254.0,1.639]
[1720993887666,0.39535339,3255.1,3254.0,1.639]
[1720993888000,0.45590425,3255.1,3254.0,1.639]
[1720993891875,2.3027,3255.0,3253.5,1.7]
[1720993892077,1.089,3254.9,3253.6,1.089]
[1720993892277,0.34520692,3254.8,3253.6,1.089]
[1720993892580,0.40557405,3254.8,3253.6,1.089]
[1720993894312,0.40557405,3254.8,3253.8,1.089]
[1720993894624,0.40557405,3254.8,3253.7,1.639]
[1720993895278,0.06036713,3254.8,3253.7,1.639]
[1720993896087,0.06036713,3254.8,3253.9,1.089]
[1720993896309,2.3027,3255.0,3254.0,0.55]
[1720993896622,2.3027,3254.6,3254.0,0.55]
[1720993896786,2.3027,3254.6,3253.6,1.7]
[1720993897118,0.06029458,3254.5,3253.7,1.089]
[1720993897275,0.06029458,3254.5,3253.8,0.55]
[1720993897819,0.06029458,3254.5,3253.8,1.089]
[1720993897984,0.06029458,3254.5,3253.9,0.55]
[1720993898187,0.06029458,3254.5,3253.8,1.089]
[1720993898188,0.29659404,3254.5,3253.8,1.089]
[1720993898532,0.29659404,3254.5,3253.3,1.7]
[1720993898533,2.3027,3254.4,3253.3,1.7]
[1720993898689,2.36098397,3254.4,3253.3,1.7]
[1720993901633,2.36098397,3254.4,3253.4,1.639]
[1720993906819,2.36098397,3254.4,3253.4,0.55]
[1720993911638,3.44998397,3254.4,3253.4,0.55]
[1720993911811,0.3449984,3254.3,3253.4,0.55]
[1720993911995,0.05245857,3254.2,3253.4,0.55]
[1720993914948,2.2699,3254.1,3252.2,4.24246744]
[1720993915232,2.2699,3253.5,3252.2,1.7]
[1720993915395,2.2699,3253.5,3252.4,1.089]
[1720993915595,0.05060424,3253.4,3252.4,1.089]
[1720993915799,2.2699,3253.5,3252.2,1.7]
[1720993916000,0.05057776,3253.4,3252.4,1.089]
[1720993916241,2.2699,3253.5,3252.4,1.089]
[1720993916427,0.05057776,3253.4,3252.5,0.55]
[1720993916736,2.2699,3253.5,3252.5,0.55]
[1720993916945,2.49689,3253.5,3252.5,0.55]
[1720993917111,0.05060446,3253.4,3252.5,0.55]
[1720993917523,0.05060446,3253.4,3252.4,1.089]
[1720993917704,0.05060446,3253.4,3252.5,0.55]
[1720993918244,0.05060446,3253.4,3252.4,1.089]
[1720993918245,2.2699,3253.3,3252.4,1.089]
[1720993918396,0.05051727,3253.2,3252.2,1.85419601]
[1720993918602,2.2699,3253.1,3252.2,1.85419601]
[1720993919030,0.05051481,3253.0,3252.3,1.089]
[1720993919234,0.05051481,3253.0,3252.2,1.85419601]
[1720993919407,0.05051481,3253.0,3252.3,1.089]
[1720993919733,0.05051481,3253.0,3252.2,1.85419601]
[1720993919900,0.05051481,3253.0,3252.3,1.639]
[1720993921229,0.05051481,3253.0,3252.3,0.55]
[1720993921432,0.05051481,3253.0,3252.3,1.639]
[1720993922303,2.2699,3253.1,3253.0,1.94948519]
[1720993924244,0.22699,3253.5,3253.0,1.94948519]
[1720993924245,2.49689,3253.5,3253.0,1.94948519]
[1720993926342,2.2699,3253.5,3253.0,1.94948519]
[1720993930051,0.04874436,3253.4,3253.0,1.94948519]
[1720993931438,5.4685,3254.0,3253.0,1.94948519]
[1720993931625,0.0487762,3253.9,3253.0,1.94948519]
[1720993934458,0.0487762,3253.9,3253.1,0.55]
[1720993934618,0.60050382,3253.9,3253.1,0.55]
[1720993939075,1.68950382,3253.9,3253.1,0.55]
[1720993941366,0.60050382,3253.9,3253.1,0.55]
[1720993946575,1.089,3253.8,3253.1,0.55]
[1720993946885,1.089,3253.8,3253.0,1.94948519]
[1720993946886,1.13782459,3253.8,3253.0,1.94948519]
[1720993947183,1.089,3253.6,3253.0,1.94948519]
[1720993947339,0.16895038,3253.7,3253.0,1.94948519]
[1720993947542,0.04881013,3253.5,3253.0,1.94948519]
[1720993947752,0.04881136,3253.6,3253.0,1.94948519]
[1720993948039,1.089,3253.7,3253.0,1.94948519]
[1720993948040,0.04881013,3253.5,3253.0,1.94948519]
[1720993948239,1.089,3253.7,3253.0,1.94948519]
[1720993948479,0.04881796,3253.6,3253.1,0.55]
[1720993949082,4.089,3253.8,3253.0,1.94948519]
[1720993949250,0.67412778,3253.7,3253.0,1.94948519]
[1720993951478,1.089,3253.6,3253.0,1.94948519]
[1720993951647,0.04880801,3253.5,3253.0,1.94948519]
[1720993952356,3.55172762,3253.9,3253.0,4.28918519]
[1720993952554,0.04879475,3253.4,3253.1,0.55]
[1720993952789,0.55172762,3253.9,3253.1,0.55]
[1720993952970,0.04879309,3253.3,3253.0,4.28918519]
[1720993953173,0.51645814,3253.8,3253.0,4.28918519]
[1720993953346,0.04879186,3253.2,3253.0,4.28918519]
[1720993953722,0.51645814,3253.8,3253.0,4.28918519]
[1720993953852,1.60545814,3253.8,3253.0,4.28918519]
[1720993954052,0.20936207,3253.7,3253.0,4.28918519]
[1720993956485,0.20936207,3253.7,3253.0,2.3397]
[1720993959481,0.04881626,3253.7,3253.0,2.3397]
[1720993960699,0.04881626,3253.7,3252.5,3.3459]
[1720993960864,0.74234852,3253.6,3252.5,2.2569]
[1720993961070,0.79112898,3253.5,3252.5,2.2569]
[1720993961295,0.24052652,3253.4,3252.5,2.2569]
[1720993961681,0.04876943,3253.3,3252.5,2.2569]
[1720993962616,0.74222631,3253.2,3252.4,1.7]
[1720993962770,2.3571838,3253.1,3252.5,0.55]
[1720993962974,0.65125664,3253.0,3252.2,0.55]
[1720993963194,1.66369512,3253.1,3252.2,0.55]
[1720993963503,0.69997733,3253.0,3252.2,0.55]
[1720993963718,0.04871357,3253.0,3252.2,1.639]
[1720993964607,5.14258283,3253.2,3252.2,1.639]
[1720993964806,0.04871998,3252.9,3252.2,1.639]
[1720993965016,0.79128115,3253.1,3252.2,1.639]
[1720993965219,0.04871919,3252.8,3252.2,1.639]
[1720993965398,0.74255828,3253.1,3252.2,1.639]
[1720993965596,0.04871796,3252.7,3252.2,1.639]
[1720993965919,0.04868816,3252.6,3252.2,1.639]
[1720993966417,0.52762534,3253.2,3252.2,1.639]
[1720993966719,4.4423456,3253.1,3252.2,1.639]
[1720993966916,3.79114891,3253.1,3252.2,1.639]
[1720993967485,0.79114891,3253.1,3252.2,1.639]
[1720993969992,0.79114891,3253.1,3252.4,1.089]
[1720993970320,0.0486943,3253.1,3252.4,1.089]
[1720993970527,0.0486943,3253.1,3252.2,0.55]
[1720993970689,0.0486943,3253.1,3252.2,1.639]
[1720993971927,0.0486943,3253.1,3252.4,1.089]
[1720993972128,0.0486943,3253.1,3252.5,2.265]
[1720993972330,2.3954,3253.0,3251.8,2.265]
[1720993972541,2.3954,3253.0,3251.9,1.089]
[1720993972542,5.3954,3253.0,3251.9,1.089]
[1720993972724,0.04864456,3252.9,3251.9,1.089]
[1720993973199,1.13764456,3252.9,3251.8,2.265]
[1720993973409,2.75018038,3252.9,3251.8,2.265]
[1720993973768,1.46576552,3252.8,3251.8,2.265]
[1720993973907,0.81455804,3252.8,3251.8,2.265]
[1720993974234,0.04864094,3252.7,3251.8,2.265]
[1720993975224,1.13764094,3252.7,3251.8,2.265]
[1720993977237,1.089,3252.5,3251.8,2.265]
[1720993977439,2.3954,3252.4,3251.3,3.354]
[1720993977604,2.4438399,3252.4,3251.4,0.55]
[1720993977806,1.089,3252.3,3251.4,0.55]
[1720993978004,1.089,3252.3,3251.2,0.55]
[1720993978005,4.089,3252.3,3251.2,0.55]
[1720993978243,0.70172144,3252.2,3251.2,0.55]
[1720993978836,0.70172144,3252.2,3251.0,2.0]
[1720993979039,1.089,3252.0,3251.0,2.0]
[1720993979352,2.44370879,3251.9,3251.0,2.0]
[1720993979510,5.44370879,3251.9,3251.0,2.0]
[1720993979712,1.74227088,3251.8,3251.0,2.0]
[1720993980121,0.04830634,3251.7,3251.0,2.0]
[1720993981053,1.089,3251.6,3251.0,2.0]
[1720993981429,0.04830388,3251.5,3251.0,2.0]
[1720993982560,3.4608,3251.1,3251.0,2.0]
[1720993982924,6.4608,3251.1,3251.0,2.0]
[1720993983123,6.50869395,3251.1,3251.0,2.0]
[1720993983349,4.13689395,3251.1,3251.0,2.0]
[1720993984854,6.40179395,3251.1,3251.0,2.0]
[1720993985055,7.43803135,3251.1,3251.0,2.0]
[1720993986865,7.43803135,3251.1,3249.5,1.089]
[1720993987022,1.089,3250.5,3249.5,1.089]
[1720993987227,3.0,3251.0,3249.5,1.089]
[1720993987427,0.04763733,3250.4,3249.5,1.089]
[1720993987648,1.089,3250.5,3249.5,1.089]
[1720993987927,0.04763733,3250.4,3249.3,2.3763]
[1720993988127,0.04763733,3250.4,3249.3,3.4653]
[1720993988777,0.04763733,3250.4,3249.4,1.089]
[1720993989554,1.089,3250.7,3249.4,1.089]
[1720993989763,0.0476448,3250.3,3249.4,1.089]
[1720993990271,1.089,3250.7,3249.4,1.089]
[1720993990573,3.0,3251.0,3249.4,1.089]
[1720993990728,0.04764675,3250.6,3249.5,0.55]
[1720993991066,1.089,3250.7,3249.5,0.55]
[1720993991235,0.04751196,3250.5,3249.5,0.55]
[1720993991441,0.04751276,3250.6,3249.5,0.55]
[1720993991624,1.089,3250.7,3249.5,0.55]
[1720993991625,0.04751073,3250.4,3249.5,0.55]
[1720993991826,0.04751153,3250.5,3249.5,0.55]
[1720993992158,0.04750986,3250.4,3249.5,0.55]
[1720993992634,1.089,3250.7,3249.5,0.55]
[1720993992635,0.63011374,3250.9,3249.5,0.55]